[Event "26th Womens ECCC 2022"]
[Site "Mayrhofen"]
[Date "2022.10.06"]
[Round "4.18"]
[White "Belenkaya, Dina"]
[Black "Federovski, Adi"]
[Result "1-0"]
[ECO "B30"]
[WhiteElo "2263"]
[BlackElo "1967"]
[Annotator "TA"]
[PlyCount "82"]
[EventDate "2022.10.03"]
[EventType "team-tourn"]
[EventCountry "AUT"]
[SourceTitle "playchess.com"]
[Source "ChessBase"]
[SourceQuality "1"]
[TimeControl "40/5400+30:1800+30"]

{[%evp 12,82,14,-9,-4,-14,17,-3,11,17,8,31,50,56,74,68,82,49,114,131,138,112,117,-72,-76,-79,-48,-54,-23,-42,0,0,0,0,0,-16,0,0,0,0,0,0,151,155,158,157,187,136,190,159,320,108,159,0,282,208,194,185,285,171,490,496,480,455,1185,1163,1094,1064,6283,6279,29990,29991,29991]} 1. e4 {[%emt 0:00:16]} c5 {[%emt 0:00:11]} 2. Nf3 {[%emt 0:00:05]} Nc6 {[%emt 0:00:04]} 3. Bb5 {[%emt 0:00:10]} e6 {[%emt 0:00:37]} 4. O-O {[%emt 0:03:12]} Nge7 {[%emt 0:00:20]} 5. Re1 {[%emt 0:02:22]} a6 {[%emt 0:00:49]} 6. Bf1 {[%emt 0:02:34]} d5 {[%emt 0:07:18]} 7. d3 {[%emt 0:02:17]} d4 {[%emt 0:00:21] B30: Sicilian: 2...Nc6 3 Bb5, lines without ...g6.} 8. e5 {[%emt 0:03:41]} Ng6 {[%emt 0:08:35] The old main line.} 9. a4 {[%emt 0:01:56]} Be7 {[%emt 0:01:39] The position is equal.} 10. Nbd2 {[%emt 0:01:20] [#]} O-O $146 {[%emt 0:01:38]} ({Predecessor:} 10... Rb8 11. g3 O-O 12. Bg2 f6 13. exf6 gxf6 14. h4 Bd7 15. Ne4 e5 16. Bh6 Re8 {0-1 (45) Sarbok,T (2367)-Gustafsson,J (2628) Germany 2014}) 11. g3 {[%emt 0:04:54]} Qc7 {[%emt 0:04:42][%cal Rc6e5]} 12. Nc4 {[%emt 0:03:31]} b6 {[%emt 0:14:51]} 13. h4 {[%emt 0:02:26][%cal Bh2h4,Bh4h5,Bh5h6][%mdl 32]} Bb7 {[%emt 0:04:18]} 14. h5 {[%emt 0:01:30]} Nh8 {[%emt 0:00:04]} (14... b5 $1 $14) 15. h6 $16 {[%emt 0:03:36]} g6 {[%emt 0:00:09]} 16. Bf4 {[%emt 0:02:07]} Nb4 {[%emt 0:06:02]} 17. Nd6 $2 {[%emt 0:03:57]} (17. Ncd2 $16 {and life is bright.}) 17... Bxf3 $17 {[%emt 0:12:15]} 18. Qxf3 {[%emt 0:00:07]} Nxc2 {[%emt 0:03:32]} 19. Ne4 $1 {[%emt 0:03:21]} Qd8 {[%emt 0:03:03]} 20. Qg4 $1 {[%emt 0:04:19]} Nxa1 {[%emt 0:04:44]} 21. Rxa1 {[%emt 0:00:29]} Rc8 {[%emt 0:04:31][%cal Og6g5]} 22. b3 {[%emt 0:08:55]} Rb8 {[%emt 0:04:31]} 23. Bg2 {[%emt 0:04:59]} a5 {[%emt 0:00:06]} 24. Rc1 {[%emt 0:04:13]} Rc8 {[%emt 0:02:12]} 25. Bh3 {[%emt 0:04:10]} Rc6 {[%emt 0:01:03]} 26. Re1 {[%emt 0:05:48]} Rc8 $2 {[%emt 0:04:30] [#]} (26... Re8 $1 $11) 27. Bg5 $1 $16 {[%emt 0:08:50] White is much more active. The black rooks are badly placed.} Bxg5 {[%emt 0:00:39]} 28. Nxg5 {[%emt 0:00:11]} Rc6 {[%emt 0:02:22]} 29. Bg2 {[%emt 0:06:54][%mdl 1024] White has strong compensation.} Rc7 {[%emt 0:06:38]} (29... f5 $16 {was necessary.} 30. exf6 Rd6) 30. Qf4 $18 {[%emt 0:00:34]} Rc8 $2 {[%emt 0:01:32]} (30... Re8 $16 31. Re2 Ra7) 31. Bh3 $2 {[%emt 0:01:43]} (31. Bb7 $18 Rb8 32. Bc6) 31... Rc6 {[%emt 0:00:20]} (31... Re8 $142) 32. Bg2 {[%emt 0:02:17]} (32. Re2 $16) 32... Rc8 $1 {[%emt 0:00:11]} 33. Re2 {[%emt 0:02:13] And now Bb7 would win.} Rc7 {[%emt 0:02:04]} 34. g4 {[%emt 0:03:04]} ({Don't take} 34. Ne4 $6 f5 35. Nf6+ Rxf6 36. exf6 Kf7 $14) 34... Rc8 {[%emt 0:00:41]} (34... Re8 $142 35. Ne4 Qh4) 35. Re1 $40 {[%emt 0:00:21][%cal Be2e1,Be1e6,Be6e7][%mdl 160] Black must now prevent Bb7. White has strong attack.} Rb8 $2 {[%emt 0:00:40]} (35... Qe7 {is more resistant.}) 36. Ne4 {[%emt 0:01:27] Intending Qf6 and mate.} f5 {[%emt 0:00:42] [#]} 37. Nf6+ {[%emt 0:01:04]} Rxf6 {[%emt 0:00:25]} (37... Kf7 $142 38. Qh2 Ke7) 38. exf6 {[%emt 0:00:02]} Nf7 {[%emt 0:00:29]} 39. Rxe6 {[%emt 0:00:24]} fxg4 {[%emt 0:00:27] [#]} 40. Bd5 $1 {[%emt 0:02:21][%mdl 512] Threatening mate with Re7.} Kh8 {[%emt 0:00:44]} (40... Rc8 41. Bc4) 41. Re7 {[%emt 0:32:24]} Qd6 {Weighted Error Value: White=0.38/Black=0.57} 1-0

[Event "26th Womens ECCC 2022"]
[Site "Mayrhofen"]
[Date "2022.10.06"]
[Round "4.19"]
[White "Reprun, Nadejda"]
[Black "Orian, Noga"]
[Result "1/2-1/2"]
[ECO "B90"]
[WhiteElo "1968"]
[BlackElo "1940"]
[Annotator "TA"]
[PlyCount "61"]
[EventDate "2022.10.03"]
[EventType "team-tourn"]
[EventCountry "AUT"]
[SourceTitle "playchess.com"]
[Source "ChessBase"]
[SourceQuality "1"]
[TimeControl "40/5400+30:1800+30"]

{[%evp 24,61,12,18,12,22,18,-16,0,-32,75,90,66,43,70,43,68,33,74,52,52,70,106,88,77,45,52,35,100,93,89,39,43,49,49,38,59,69,105,93]} 1. e4 {[%emt 0:00:01]} c5 {[%emt 0:00:05]} 2. Nf3 {[%emt 0:00:05]} d6 {[%emt 0:00:03]} 3. d4 {[%emt 0:00:03]} cxd4 {[%emt 0:00:03]} 4. Nxd4 {[%emt 0:00:05]} Nf6 {[%emt 0:00:03]} 5. Nc3 {[%emt 0:00:04]} a6 {[%emt 0:00:02]} 6. f3 {[%emt 0:00:18]} e5 {[%emt 0:00:13]} 7. Nb3 {[%emt 0:00:07]} Be6 {[%emt 0:00:06]} 8. Be3 {[%emt 0:00:20]} Be7 {[%emt 0:00:09]} 9. Qd2 {[%emt 0:00:26]} Nbd7 {[%emt 0:00:11]} 10. g4 {[%emt 0:01:02]} O-O {[%emt 0:00:16]} 11. O-O-O {[%emt 0:06:10]} b5 {[%emt 0:00:08]} 12. g5 {[%emt 0:05:45]} Nh5 {[%emt 0:00:06]} 13. Nd5 {[%emt 0:01:24]} Bxd5 {[%emt 0:00:04] B90: Sicilian Najdorf: Unusual White 6th moves, 6 Be3 Ng4 and 6 Be3 e5.} 14. exd5 {[%emt 0:00:04]} f6 {[%emt 0:00:29] 14...f6 scores better than 14...f5.} 15. Na5 {[%emt 0:04:29]} Qe8 {[%emt 0:06:40] [#] The position is equal.} 16. Nc6 $146 {[%emt 0:01:24]} ({Predecessor:} 16. gxf6 Bxf6 17. Kb1 Nf4 18. Nc6 Bd8 19. Nxd8 Qxd8 20. c4 bxc4 21. Bxc4 Nb6 22. Bf1 {1-0 (52) Andriuschenko,N (2486)-Severinov,V (2415) ICCF email 2009}) 16... Nb8 {[%emt 0:10:15]} (16... fxg5 $15 {keeps the upper hand.} 17. Nxe7+ Qxe7) 17. Nxe7+ $16 {[%emt 0:01:26]} Qxe7 {[%emt 0:00:02]} 18. gxf6 {[%emt 0:00:58]} (18. g6 $5) 18... Nxf6 {[%emt 0:03:15]} 19. Rg1 {[%emt 0:06:14]} Kh8 {[%emt 0:01:20]} 20. Bh3 {[%emt 0:13:45]} a5 {[%emt 0:09:21]} 21. Be6 {[%emt 0:12:05]} Na6 {[%emt 0:09:32]} 22. f4 $1 {[%emt 0:05:58]} ({Weaker is} 22. Qxa5 Nc7 23. Qc3 Rxa2 $17) 22... Nc7 {[%emt 0:00:48]} 23. fxe5 {[%emt 0:04:09]} dxe5 {[%emt 0:00:12]} 24. Qg2 {[%emt 0:01:50]} Nxe6 {[%emt 0:02:24]} 25. dxe6 {[%emt 0:00:07][%cal Oe3c5] Threatens to win with Bc5!} Rac8 {[%emt 0:14:54] Prevents Bc5.} ({Better is} 25... Rg8 $14) 26. Qg5 {[%emt 0:07:05][%cal Od1d7] Strongly threatening Rd7!} Rfe8 {[%emt 0:04:24] [#]} 27. Qxe5 {[%emt 0:03:27] White is much more active.} ({White should try} 27. Rd6 $1 $16) 27... Qxe6 $14 {[%emt 0:00:43]} 28. Qxe6 {[%emt 0:00:45]} Rxe6 {[%emt 0:00:02]} 29. Bd4 {[%emt 0:02:10]} Re2 {[%emt 0:07:06]} 30. Rd2 {[%emt 0:01:53]} Rxd2 {[%emt 0:01:11]} 31. Kxd2 {[%emt 0:00:02] Weighted Error Value: White=0.18 (very precise) /Black=0.26 (precise)} 1/2-1/2

[Event "26th Womens ECCC 2022"]
[Site "Mayrhofen"]
[Date "2022.10.06"]
[Round "4.20"]
[White "Golovchanskaya, Alina"]
[Black "Vardi, Shlomit"]
[Result "0-1"]
[ECO "A04"]
[WhiteElo "1684"]
[BlackElo "1769"]
[Annotator "NA RC COMBH"]
[PlyCount "96"]
[EventDate "2022.10.03"]
[EventType "team-tourn"]
[EventCountry "AUT"]
[SourceTitle "playchess.com"]
[Source "ChessBase"]
[SourceQuality "1"]
[TimeControl "40/5400+30:1800+30"]

1. Nf3 {[%emt 0:00:04]} g6 {[%emt 0:00:07]} 2. c4 {[%emt 0:00:27]} d6 {[%emt 0:00:10]} 3. Nc3 {[%emt 0:01:01]} Bg7 {[%emt 0:00:09]} 4. g3 {[%emt 0:00:53]} e5 {[%emt 0:01:03]} 5. Bg2 {[%emt 0:00:58]} f5 {[%emt 0:00:14]} 6. d3 {[%emt 0:00:21]} Nc6 {[%emt 0:01:05]} 7. Bg5 {[%emt 0:09:40]} Nce7 {[%emt 0:02:47]} 8. Qc2 {[%emt 0:06:13]} h6 {[%emt 0:05:23]} 9. Be3 {[%emt 0:05:27]} Nf6 {[%emt 0:03:08]} 10. c5 {[%emt 0:09:29]} Ng4 {[%emt 0:04:20]} 11. Nb5 {[%emt 0:20:20]} Nxe3 {[%emt 0:10:40]} 12. fxe3 {[%emt 0:03:08]} d5 {[%emt 0:00:46]} 13. d4 {[%emt 0:08:29]} a6 {[%emt 0:05:03]} 14. Nc3 {[%emt 0:01:40]} e4 {[%emt 0:01:11]} 15. Nd2 {[%emt 0:00:35]} O-O {[%emt 0:01:38]} 16. b4 {[%emt 0:01:55]} c6 {[%emt 0:06:41]} 17. Na4 {[%emt 0:05:04]} Be6 {[%emt 0:01:56]} 18. Nb6 {[%emt 0:01:55]} Rb8 {[%emt 0:00:08]} 19. a4 {[%emt 0:00:19]} f4 {[%emt 0:01:11]} 20. exf4 {[%emt 0:10:11]} Bxd4 {[%emt 0:08:14]} 21. O-O-O {[%emt 0:01:24]} Nf5 {[%emt 0:01:31]} 22. Bh3 {[%emt 0:03:16]} Qf6 {[%emt 0:04:57]} 23. Bxf5 {[%emt 0:01:31]} Bxf5 {[%emt 0:00:25]} 24. Qb3 {[%emt 0:00:45]} Qe6 {[%emt 0:06:15]} 25. e3 {[%emt 0:01:06]} Bg7 {[%emt 0:01:32]} 26. Nb1 {[%emt 0:03:23]} Rfd8 {[%emt 0:02:28]} 27. Nc3 {[%emt 0:00:31]} Kh7 {[%emt 0:01:34]} 28. Ne2 {[%emt 0:00:14]} Bg4 {[%emt 0:00:33]} 29. Rd2 {[%emt 0:01:27]} Bxe2 {[%emt 0:00:38]} 30. Rxe2 {[%emt 0:00:06]} Qf6 {[%emt 0:00:31]} 31. Rhe1 {[%emt 0:00:55]} Qc3+ {[%emt 0:01:11]} 32. Qxc3 {[%emt 0:00:59]} Bxc3 {[%emt 0:00:05]} 33. Rd1 {[%emt 0:01:06]} Bxb4 {[%emt 0:00:08]} 34. Rc2 {[%emt 0:01:05]} Ba5 {[%emt 0:00:22]} 35. Rb2 {[%emt 0:00:31]} Bc3 {[%emt 0:00:38]} 36. Rc2 {[%emt 0:00:55]} Bf6 {[%emt 0:00:25]} 37. Rcd2 {[%emt 0:00:48]} g5 {[%emt 0:01:11]} 38. Rg2 {[%emt 0:00:44]} Be7 {[%emt 0:00:28]} 39. Rc2 {[%emt 0:00:12]} Kg6 {[%emt 0:00:25]} 40. Kb2 {[%emt 0:00:32]} a5 {[%emt 0:00:33]} 41. Kb3 {[%emt 0:30:20]} gxf4 {[%emt 0:36:52]} 42. gxf4 {[%emt 0:00:00]} Kf5 {[%emt 0:00:00]} 43. h3 {[%emt 0:00:00]} Ke6 {[%emt 0:00:00]} 44. Rg1 {[%emt 0:00:00]} Rg8 {[%emt 0:00:00]} 45. Rf1 {[%emt 0:00:00]} Rbd8 {[%emt 0:00:00]} 46. f5+ {[%emt 0:00:00]} Kf6 {[%emt 0:00:00]} 47. h4 {[%emt 0:00:00]} Rg3 {[%emt 0:00:00]} 48. Re2 {[%emt 0:00:00]} Bxc5 {[%emt 0:00:00]} 0-1

[Event "26th Womens ECCC 2022"]
[Site "Mayrhofen"]
[Date "2022.10.06"]
[Round "4.21"]
[White "Muzychuk, Mariya"]
[Black "Krasteva, Beloslava"]
[Result "1-0"]
[ECO "B22"]
[WhiteElo "2527"]
[BlackElo "2287"]
[Annotator "TA"]
[PlyCount "69"]
[EventDate "2022.10.03"]
[EventType "team-tourn"]
[EventCountry "AUT"]
[SourceTitle "playchess.com"]
[Source "ChessBase"]
[SourceQuality "1"]
[TimeControl "40/5400+30:1800+30"]

{[%evp 12,69,17,17,16,0,0,3,30,31,22,10,41,19,74,0,51,32,89,64,86,97,144,147,257,272,244,196,165,154,183,177,179,177,206,212,233,216,254,234,247,289,391,365,451,266,284,237,334,336,1010,988,5602,797,791,783,754,751,749,744]} 1. e4 {[%emt 0:00:03]} c5 {[%emt 0:00:11]} 2. c3 {[%emt 0:00:22]} d5 {[%emt 0:01:00]} 3. exd5 {[%emt 0:00:10]} Qxd5 {[%emt 0:00:13]} 4. d4 {[%emt 0:00:23]} Nf6 {[%emt 0:00:34]} 5. Nf3 {[%emt 0:00:17]} e6 {[%emt 0:00:38]} 6. Na3 {[%emt 0:00:37]} Nc6 {[%emt 0:00:48]} 7. Be3 {[%emt 0:00:27]} cxd4 {[%emt 0:02:20] B22: Sicilian: 2 c3.} (7... Ng4 {is interesting.} 8. Bg5 Bd7 9. h3 Nf6) 8. Nb5 $1 {[%emt 0:00:16]} (8. Nxd4 Bxa3 9. bxa3 O-O $15) 8... Qd7 {[%emt 0:03:28] Inhibits Nc7+.} 9. Nbxd4 {[%emt 0:00:48]} a6 {[%emt 0:04:19] Prevents Bb5. The position is equal. 9...Be7 is becoming the main line.} 10. Nxc6 {[%emt 0:16:08]} Qxc6 {[%emt 0:00:16]} 11. Bd3 {[%emt 0:00:31] [#]} Be7 $146 {[%emt 0:09:45]} ({Predecessor:} 11... Bd6 12. Bd4 b5 13. Bxf6 gxf6 14. Nd2 f5 15. Be2 Bb7 16. Bf3 Qc7 17. c4 Rd8 18. Bxb7 Qxb7 {0-1 (42) Al Shamsi,O (1469)-Yasmin,A (1509) Ajman 2019}) 12. Qe2 {[%emt 0:01:30]} O-O {[%emt 0:01:19]} (12... b5 $11 {remains equal.}) 13. O-O-O {[%emt 0:02:37]} ({White should try} 13. Bd4 $16) 13... Qc7 {[%emt 0:04:08]} ({Better is} 13... b5 $11) 14. Bd4 $14 {[%emt 0:05:23]} Nd5 {[%emt 0:05:24]} (14... Bd7 $14) 15. Be5 {[%emt 0:06:11] White is more active.} Qa5 {[%emt 0:02:57]} 16. Kb1 $1 $40 {[%emt 0:03:30][%mdl 128] Black is in trouble.} ({Of course not} 16. Qe4 g6 $11) 16... Rd8 {[%emt 0:16:25]} ({Black should play} 16... Bd7) 17. Qe4 $16 {[%emt 0:05:17]} g6 {[%emt 0:02:44]} (17... f5 $16 18. Qe2 Bd7) 18. h4 $1 $18 {[%emt 0:06:44]} Nf6 {[%emt 0:03:48]} 19. Qe2 {[%emt 0:03:56][%cal Oh4h5]} h5 {[%emt 0:02:04]} 20. Bd4 {[%emt 0:01:52]} Ng4 {[%emt 0:04:42]} 21. Nd2 {[%emt 0:03:06]} Qc7 {[%emt 0:10:53]} 22. Nc4 {[%emt 0:01:21] Inhibits e5. Bb6 is the strong threat.} Bc5 {[%emt 0:02:08] Against Bb6} 23. f3 {[%emt 0:01:47]} Bxd4 {[%emt 0:06:46]} 24. fxg4 {[%emt 0:03:20]} ({Less strong is} 24. cxd4 Nf6 $14) 24... Bg7 {[%emt 0:05:01]} 25. gxh5 {[%emt 0:00:11]} gxh5 {[%emt 0:01:22]} 26. Qxh5 {[%emt 0:01:10] Strongly threatening Qh7+.} f5 {[%emt 0:00:30]} 27. Qg5 {[%emt 0:23:20] Black must now prevent h5.} b5 {[%emt 0:00:42] [#]} 28. Ne5 {[%emt 0:00:50][%mdl 512]} Bb7 {[%emt 0:01:28]} 29. Rhe1 {[%emt 0:00:12] aiming for h5.} Rd5 {[%emt 0:05:13]} (29... Rac8 $142 30. g4 Be4) 30. Ng6 {[%emt 0:01:31][%cal Be5g6,Bg6f4,Bf4e6,Be6g7][%mdl 32] Hoping for Ne7+.} Kf7 {[%emt 0:01:09] Inhibits Ne7.} (30... Rd6 31. Bc2 Rad8 32. Rxd6 Rxd6) 31. Nf4 {[%emt 0:00:46] White is clearly winning.} Re5 {[%emt 0:02:31] [#]} 32. Qg6+ {[%emt 0:00:40]} (32. Nxe6 $142 $1 {[%mdl 512]} Rxe6 33. Rxe6 (33. Qxf5+ Rf6 $14)) 32... Kg8 {[%emt 0:00:14]} 33. Nxe6 {[%emt 0:00:20]} Qf7 {[%emt 0:00:48]} 34. Qxg7+ {[%emt 0:00:19]} Qxg7 {[%emt 0:00:05]} 35. Nxg7 {[%emt 0:00:03] Weighted Error Value: White=0.18 (very precise) /Black=0.39} 1-0

[Event "26th Womens ECCC 2022"]
[Site "Mayrhofen"]
[Date "2022.10.06"]
[Round "4.22"]
[White "Radeva, Viktoria"]
[Black "Unuk, Laura"]
[Result "1/2-1/2"]
[ECO "C47"]
[WhiteElo "2263"]
[BlackElo "2297"]
[Annotator "TA"]
[PlyCount "53"]
[EventDate "2022.10.03"]
[EventType "team-tourn"]
[EventCountry "AUT"]
[SourceTitle "playchess.com"]
[Source "ChessBase"]
[SourceQuality "1"]
[TimeControl "40/5400+30:1800+30"]

{[%evp 16,53,0,0,0,0,13,0,67,62,53,68,62,20,20,20,20,20,21,23,21,15,25,19,18,18,25,18,20,16,21,19,20,19,22,0,28,0,23,0]} 1. e4 {[%emt 0:00:03]} e5 {[%emt 0:00:15]} 2. Nf3 {[%emt 0:00:05]} Nc6 {[%emt 0:00:07]} 3. Nc3 {[%emt 0:00:04]} Nf6 {[%emt 0:00:41]} 4. d4 {[%emt 0:00:10]} exd4 {[%emt 0:01:13]} 5. Nxd4 {[%emt 0:00:04]} Bb4 {[%emt 0:01:12]} 6. Nxc6 {[%emt 0:00:11]} bxc6 {[%emt 0:00:05]} 7. Bd3 {[%emt 0:00:05]} O-O {[%emt 0:04:56]} 8. O-O {[%emt 0:01:36]} d5 {[%emt 0:01:28]} 9. Bd2 {[%emt 0:00:10]} Rb8 {[%emt 0:01:29] [#] C47: Scotch Four Knights and Four Knights with 4 g3.} 10. Qf3 $146 {[%emt 0:08:47]} ({Predecessor:} 10. Re1 dxe4 11. Nxe4 Nxe4 12. Rxe4 Bxd2 13. Qxd2 Bf5 14. Re3 Bxd3 15. Rxd3 Qf6 16. Qc3 Qxc3 17. Rxc3 Rxb2 18. Rxc6 Rd8 19. g3 g6 20. Rxc7 Rd2 21. Rxa7 Rdxc2 22. Rf1 Rxa2 23. Rxa2 Rxa2 {½-½ (23) Karjakin,S (2747)-Kramnik,V (2753) Krasnogorsk 2022}) 10... Bg4 {[%emt 0:20:17]} 11. Qf4 {[%emt 0:07:33] [#] Strongly threatening e5.} Qd7 {[%emt 0:12:57]} (11... Be6 $11) 12. h3 $1 $14 {[%emt 0:10:22] And now e5 would win.} dxe4 {[%emt 0:10:48]} 13. Nxe4 {[%emt 0:06:03]} Nxe4 {[%emt 0:05:22]} 14. Qxe4 {[%emt 0:03:18][%csl Gd3][%cal Re4h7]} Bf5 {[%emt 0:00:46]} 15. Qxf5 {[%emt 0:00:25]} Qxf5 {[%emt 0:00:04]} 16. Bxf5 {[%emt 0:00:05]} Bxd2 {[%emt 0:00:04]} 17. Rad1 {[%emt 0:01:40]} Rfd8 {[%emt 0:04:29]} 18. b3 {[%emt 0:02:03]} Kf8 {[%emt 0:01:26]} 19. Be4 {[%emt 0:05:00]} (19. Bxh7 $2 g6 20. Bxg6 fxg6 $17) 19... c5 {[%emt 0:01:18]} 20. Bd3 {[%emt 0:01:59]} ({Worse is} 20. Bxh7 g6 21. Bxg6 fxg6 $19) 20... Bc3 {[%emt 0:01:12]} 21. g4 {[%emt 0:02:20]} (21. Bxh7 $2 g6 22. g3 Kg7 23. Bxg6 (23. Rxd8 $2 Rxd8 24. Bxg6 Kxg6 $19) 23... fxg6 $19) 21... Rd6 {[%emt 0:03:25]} 22. Kg2 {[%emt 0:01:20]} h6 {[%emt 0:03:16]} 23. f4 {[%emt 0:03:18]} Re8 {[%emt 0:02:08]} 24. Bc4 {[%emt 0:08:28]} Bd2 {[%emt 0:05:12]} 25. Bd3 {[%emt 0:01:50]} Bc3 {[%emt 0:00:06]} 26. Bc4 {[%emt 0:00:42]} Bd2 {[%emt 0:01:09]} 27. Bd3 {[%emt 0:02:07] Weighted Error Value: White=0.07 (flawless) /Black=0.11 (very precise)} 1/2-1/2

[Event "26th Womens ECCC 2022"]
[Site "Mayrhofen"]
[Date "2022.10.06"]
[Round "4.23"]
[White "Urh, Zala"]
[Black "Djukic, Sandra"]
[Result "1-0"]
[ECO "A57"]
[WhiteElo "2221"]
[BlackElo "2138"]
[Annotator "TA"]
[PlyCount "109"]
[EventDate "2022.10.03"]
[EventType "team-tourn"]
[EventCountry "AUT"]
[SourceTitle "playchess.com"]
[Source "ChessBase"]
[SourceQuality "1"]
[TimeControl "40/5400+30:1800+30"]

{[%evp 16,109,60,31,64,48,55,19,26,23,28,25,36,0,0,-13,-23,-41,0,0,0,0,29,14,20,0,1,2,26,0,75,77,133,142,142,0,0,0,0,0,60,56,116,101,162,166,175,175,182,183,170,175,357,339,495,503,502,193,197,199,187,193,475,289,308,299,411,366,338,344,427,400,459,443,480,485,461,439,484,479,528,518,576,558,669,560,555,535,534,526,778,772,955,936,938,937]} 1. d4 {[%emt 0:00:02]} Nf6 {[%emt 0:00:22]} 2. c4 {[%emt 0:00:08]} c5 {[%emt 0:00:05]} 3. d5 {[%emt 0:00:22]} b5 {[%emt 0:00:05]} 4. Nf3 {[%emt 0:00:26]} g6 {[%emt 0:00:07]} 5. Qc2 {[%emt 0:00:29]} bxc4 {[%emt 0:03:51]} 6. e4 {[%emt 0:01:30]} Bg7 {[%emt 0:01:07]} 7. Bxc4 {[%emt 0:01:12]} d6 {[%emt 0:01:15]} 8. O-O {[%emt 0:01:55]} O-O {[%emt 0:00:51]} 9. h3 {[%emt 0:11:10] 9.h3 was played by the boomers.} a5 {[%emt 0:05:04] A57: Benko/Volga Gambit.} 10. Bf4 {[%emt 0:08:13] [#]} Na6 $146 {[%emt 0:09:09]} ({Predecessor:} 10... Ba6 11. Nbd2 Nbd7 12. Rad1 Ne8 13. Rfe1 Nb6 14. b3 a4 15. e5 axb3 16. axb3 Nc7 17. exd6 exd6 {1-0 (68) Bensdorp,M (2228)-Worek,J (2316) Monte Carlo 2019}) 11. a3 {[%emt 0:14:13] Against Nb4} Nc7 {[%emt 0:05:52] The position is equal.} 12. Nc3 {[%emt 0:01:34]} Ba6 {[%emt 0:00:41]} 13. Nd2 {[%emt 0:02:05]} Nd7 {[%emt 0:06:45]} 14. Bh2 {[%emt 0:04:50]} Qc8 {[%emt 0:14:38]} 15. Bxa6 {[%emt 0:24:38]} Qxa6 {[%emt 0:00:36]} 16. a4 {[%emt 0:00:06]} Ne5 {[%emt 0:05:06]} 17. Bxe5 {[%emt 0:08:08]} Bxe5 {[%emt 0:00:06]} 18. b3 {[%emt 0:00:10]} Qb7 {[%emt 0:09:05]} 19. Nc4 {[%emt 0:02:17]} Bd4 {[%emt 0:00:07]} 20. Rab1 {[%emt 0:01:36]} f5 {[%emt 0:24:26]} 21. Ne2 {[%emt 0:01:39]} Bg7 {[%emt 0:00:41]} 22. Rfd1 {[%emt 0:00:52]} f4 {[%emt 0:10:45]} (22... fxe4 $11 {keeps the balance.} 23. Qxe4 Ra6) 23. f3 $16 {[%emt 0:00:34]} g5 {[%emt 0:00:17]} ({Black should play} 23... Rf7) 24. e5 {[%emt 0:05:09]} dxe5 {[%emt 0:00:26]} 25. d6 {[%emt 0:00:27] White is more active.} (25. Nc3 $16) 25... Ne6 $1 $11 {[%emt 0:00:21]} (25... Nd5 $2 26. Qe4 e6 27. Nc3 $18 (27. Nxe5 Rf5 $16)) 26. dxe7 {[%emt 0:04:01]} Qxe7 {[%emt 0:00:04]} 27. Qe4 {[%emt 0:00:06]} Rfd8 {[%emt 0:01:21] Prevents Rd6.} (27... Nd4 $11) 28. Rxd8+ $14 {[%emt 0:01:46]} Rxd8 {[%emt 0:00:05] Black is on the road to losing.} (28... Qxd8 $14 29. Qc6 Qe8 30. Qxe8+ Rxe8) 29. Nxa5 $16 {[%emt 0:00:45]} Rd2 {[%emt 0:01:06]} (29... Qd7 $16 {keeps fighting.}) 30. Nc4 $36 {[%emt 0:00:33][%mdl 2048] White is on the roll. Pair of Knights!} Rd8 {[%emt 0:00:29] [#]} 31. a5 $1 {[%emt 0:00:44][%cal Ba4a5,Ba5a6,Ba6a7][%mdl 32]} (31. Nxe5 $2 Nd4 32. Nxd4 Rxd4 $19) 31... Nd4 {[%emt 0:00:28]} 32. Nc3 {[%emt 0:01:21]} Qe6 {[%emt 0:00:23]} 33. Qb7 {[%emt 0:02:24]} h5 $2 {[%emt 0:00:26]} (33... e4 {is a better defense.} 34. Qxe4 (34. Nxe4 Nxf3+ 35. Kh1 Nd4 $16) 34... Qc6) 34. a6 {[%emt 0:00:33]} g4 {[%emt 0:00:43]} (34... Qd7 $142 35. Ra1 Nc6 36. Qxd7 Rxd7) 35. a7 {[%emt 0:01:05]} Qc6 {[%emt 0:00:33]} 36. Qxc6 {[%emt 0:00:53]} (36. Qb8 Rf8 37. Ra1 gxh3 {[#]} 38. Qxf8+ $3 {[%mdl 512]} Bxf8 39. a8=Q Nxf3+ 40. Kh1 hxg2+ 41. Kxg2 Ne1+ 42. Kf1 Qxa8 43. Rxa8) 36... Nxc6 {[%emt 0:00:01]} 37. Nb5 {[%emt 0:00:20]} ({Don't play} 37. fxg4 e4 $16) 37... e4 {[%emt 0:00:39]} 38. fxe4 {[%emt 0:00:29][%cal Oe4e5]} g3 $2 {[%emt 0:00:50]} (38... Bd4+ {might work better.} 39. Nxd4 cxd4) 39. Nb6 {[%emt 0:00:39]} Nxa7 {[%emt 0:00:03]} 40. Nxa7 {[%emt 0:00:02] Threatens to win with Nc6.} Rd2 {[%emt 0:00:56]} 41. Nb5 {[%emt 0:05:30]} Re2 {[%emt 0:01:28]} 42. Nc4 {[%emt 0:06:54]} Rxe4 {[%emt 0:01:54]} 43. Kf1 {[%emt 0:01:35] Against Re2} Re8 {[%emt 0:00:09]} 44. Nbd6 {[%emt 0:05:58] White is clearly winning.} Ra8 {[%emt 0:00:29]} 45. Ne4 {[%emt 0:00:20]} Ra2 {[%emt 0:01:33]} 46. Ned2 {[%emt 0:01:58]} Bc3 {[%emt 0:01:00]} 47. Rd1 {[%emt 0:00:22]} Kg7 {[%emt 0:01:30]} 48. Ke2 {[%emt 0:00:43]} Kf6 {[%emt 0:01:22]} 49. Kf3 {[%emt 0:01:45] Strongly threatening Ne4+.} Kf5 {[%emt 0:01:10]} 50. Nd6+ {[%emt 0:02:58]} Ke5 {[%emt 0:00:03]} 51. N2c4+ {[%emt 0:01:47]} Ke6 {[%emt 0:00:06]} 52. Ne4 {[%emt 0:00:35] Inhibits Rf2+.} Bb4 {[%emt 0:00:34]} 53. h4 {[%emt 0:03:29]} Kf5 {[%emt 0:01:01]} 54. Rd5+ {[%emt 0:00:41]} Ke6 {[%emt 0:00:04]} 55. Rxh5 {[%emt 0:00:23] Weighted Error Value: White=0.24 (precise) /Black=0.43} 1-0